[Event "DMP-III LIGA Senior PK 2020"]
[Site "Bystre"]
[Date "2020.07.09"]
[Round "3.12"]
[White "Uliasz, Katarzyna"]
[Black "Krzysztynska, Anna"]
[Result "0-1"]
[ECO "C44"]
[WhiteElo "1386"]
[BlackElo "1857"]
[Annotator "NA RC"]
[PlyCount "56"]
[EventDate "2020.07.05"]
[EventType "team-tourn"]
[EventCountry "POL"]
[SourceTitle "playchess.com"]
[Source "ChessBase"]
[SourceQuality "1"]
[TimeControl "5400+30"]

1. e4 e5 2. Nf3 Nc6 3. d4 exd4 4. Nxd4 d6 5. Nc3 Nf6 6. Bg5 Be7 7. f3 Bd7 8. Nb3 a6 9. Qd2 O-O 10. O-O-O b5 11. h4 Ne5 12. Na5 Rb8 13. Nd5 Nxd5 14. exd5 Bf6 15. f4 Ng4 16. Bd3 h6 17. Bxf6 Qxf6 18. Nc6 Bxc6 19. dxc6 d5 20. h5 Rfe8 21. Rde1 Qxc6 22. Bf5 Nf6 23. g4 Ne4 24. Bxe4 dxe4 25. g5 e3 26. Qd3 Rbd8 27. Qb3 e2 28. gxh6 Qxh1 0-1

[Event "DMP-III LIGA Senior PK 2020"]
[Site "Bystre"]
[Date "2020.07.09"]
[Round "3.15"]
[White "Szaro, Mariusz"]
[Black "Chowaniec, Artur"]
[Result "1-0"]
[ECO "D00"]
[WhiteElo "1559"]
[BlackElo "1530"]
[Annotator "NA RC"]
[PlyCount "131"]
[EventDate "2020.07.05"]
[EventType "team-tourn"]
[EventCountry "POL"]
[SourceTitle "playchess.com"]
[Source "ChessBase"]
[SourceQuality "1"]
[TimeControl "5400+30"]

1. d4 {[%emt 0:00:00]} d5 {[%emt 0:00:47]} 2. Bf4 {[%emt 0:00:11]} c5 {[%emt 0:00:56]} 3. e3 {[%emt 0:00:29]} Nc6 {[%emt 0:00:38]} 4. c3 {[%emt 0:00:19]} Nf6 {[%emt 0:01:36]} 5. Nd2 {[%emt 0:00:30]} Bf5 {[%emt 0:01:36]} 6. Ngf3 {[%emt 0:05:39]} cxd4 {[%emt 0:02:00]} 7. exd4 {[%emt 0:00:41]} e6 {[%emt 0:01:17]} 8. Ne5 {[%emt 0:09:43]} Nxe5 {[%emt 0:02:35]} 9. dxe5 {[%emt 0:01:12]} Nd7 {[%emt 0:02:48]} 10. Bb5 {[%emt 0:05:45]} a6 {[%emt 0:00:16]} 11. Ba4 {[%emt 0:01:00]} b5 {[%emt 0:00:20]} 12. Bc2 {[%emt 0:00:33]} Bxc2 {[%emt 0:01:37]} 13. Qxc2 {[%emt 0:00:02]} g6 {[%emt 0:02:20]} 14. O-O {[%emt 0:05:06]} Bg7 {[%emt 0:00:08]} 15. Nf3 {[%emt 0:01:52]} O-O {[%emt 0:00:13]} 16. Rfe1 {[%emt 0:01:36]} Rc8 {[%emt 0:00:40]} 17. Qd2 {[%emt 0:00:18]} Nb6 {[%emt 0:00:55]} 18. b3 {[%emt 0:01:40]} Qc7 {[%emt 0:01:44]} 19. Rac1 {[%emt 0:00:25]} Nd7 {[%emt 0:01:36]} 20. Bh6 {[%emt 0:01:09]} Rfd8 {[%emt 0:11:39]} 21. Bxg7 {[%emt 0:03:11]} Kxg7 {[%emt 0:00:13]} 22. Qe3 {[%emt 0:11:14]} Qc5 {[%emt 0:04:06]} 23. Nd4 {[%emt 0:00:23]} Qe7 {[%emt 0:00:35]} 24. Qf4 {[%emt 0:01:59]} Nc5 {[%emt 0:00:46]} 25. Re3 {[%emt 0:00:10]} Rh8 {[%emt 0:01:07]} 26. Rh3 {[%emt 0:02:22]} h5 {[%emt 0:00:27]} 27. Rf3 {[%emt 0:10:54]} Rcf8 {[%emt 0:06:00]} 28. Nc6 {[%emt 0:08:54]} Qc7 {[%emt 0:02:21]} 29. Qf6+ {[%emt 0:00:06]} Kh7 {[%emt 0:00:33]} 30. Ne7 {[%emt 0:06:46]} Ne4 {[%emt 0:02:33]} 31. Qxf7+ {[%emt 0:00:35]} Rxf7 {[%emt 0:00:54]} 32. Rxf7+ {[%emt 0:00:02]} Kh6 33. Ng8+ {[%emt 0:01:43]} Rxg8 {[%emt 0:01:40]} 34. Rxc7 {[%emt 0:00:02]} Rf8 {[%emt 0:01:45]} 35. f3 {[%emt 0:00:30]} Ng5 {[%emt 0:00:25]} 36. h4 {[%emt 0:00:50]} Nf7 {[%emt 0:00:17]} 37. f4 {[%emt 0:00:23]} Nh8 {[%emt 0:01:10]} 38. g3 {[%emt 0:00:17]} Re8 {[%emt 0:00:38]} 39. Kf2 {[%emt 0:01:06]} Rf8 {[%emt 0:00:21]} 40. Ke3 {[%emt 0:00:05]} Nf7 {[%emt 0:00:05]} 41. Rc6 {[%emt 0:00:29]} Nd8 {[%emt 0:00:13]} 42. Rxa6 {[%emt 0:00:08]} Rf7 {[%emt 0:00:06]} 43. Rb6 {[%emt 0:00:54]} Ra7 {[%emt 0:00:13]} 44. Rc2 {[%emt 0:00:12]} Ra5 {[%emt 0:00:20]} 45. Kd4 {[%emt 0:00:20]} Kg7 {[%emt 0:00:24]} 46. Kc5 {[%emt 0:00:56]} Ra7 {[%emt 0:00:17]} 47. Rxb5 {[%emt 0:00:19]} Rc7+ {[%emt 0:00:11]} 48. Kd4 {[%emt 0:00:11]} Nc6+ {[%emt 0:00:12]} 49. Ke3 {[%emt 0:00:43]} Kf7 {[%emt 0:00:20]} 50. a4 {[%emt 0:01:31]} Ke7 {[%emt 0:00:10]} 51. a5 {[%emt 0:00:49]} Kd8 {[%emt 0:00:07]} 52. Rd2 {[%emt 0:04:09]} Na7 {[%emt 0:00:44]} 53. Rb8+ {[%emt 0:00:16]} Kd7 {[%emt 0:00:13]} 54. c4 {[%emt 0:00:04]} Ke7 {[%emt 0:00:42]} 55. cxd5 {[%emt 0:00:23]} exd5 {[%emt 0:00:09]} 56. Rxd5 {[%emt 0:00:20]} Rc3+ {[%emt 0:00:22]} 57. Rd3 {[%emt 0:00:19]} Rc7 {[%emt 0:00:18]} 58. a6 {[%emt 0:01:38]} Ke6 {[%emt 0:00:57]} 59. Rb7 {[%emt 0:01:15]} Rc2 {[%emt 0:00:10]} 60. Rxa7 {[%emt 0:00:19]} Kf5 {[%emt 0:00:07]} 61. Kf3 {[%emt 0:00:18]} g5 {[%emt 0:01:31]} 62. Rf7+ {[%emt 0:00:49]} Ke6 {[%emt 0:00:19]} 63. Rf6+ {[%emt 0:00:02]} Ke7 {[%emt 0:00:18]} 64. hxg5 {[%emt 0:00:04]} h4 {[%emt 0:00:14]} 65. gxh4 {[%emt 0:00:09]} Rc1 {[%emt 0:00:14]} 66. Kg4 {[%emt 0:00:09]} 1-0

[Event "DMP-III LIGA Senior PK 2020"]
[Site "Bystre"]
[Date "2020.07.09"]
[Round "3.17"]
[White "Dziura, Wiktor"]
[Black "Kielb, Miroslaw"]
[Result "1-0"]
[ECO "A00"]
[WhiteElo "1353"]
[BlackElo "1394"]
[Annotator "NA RC"]
[PlyCount "125"]
[EventDate "2020.07.05"]
[EventType "team-tourn"]
[EventCountry "POL"]
[SourceTitle "playchess.com"]
[Source "ChessBase"]
[SourceQuality "1"]
[TimeControl "5400+30"]

1. g3 {[%emt 0:00:00]} e5 {[%emt 0:00:00]} 2. Bg2 {[%emt 0:00:00]} d5 {[%emt 0:00:56]} 3. c4 {[%emt 0:00:00]} Nf6 {[%emt 0:02:16]} 4. cxd5 {[%emt 0:00:13]} Nxd5 {[%emt 0:00:20]} 5. Nc3 {[%emt 0:00:54]} Nxc3 {[%emt 0:03:29]} 6. bxc3 {[%emt 0:00:09]} c6 {[%emt 0:00:30]} 7. Nf3 {[%emt 0:02:05]} Bd6 {[%emt 0:04:31]} 8. O-O {[%emt 0:02:16]} O-O {[%emt 0:00:22]} 9. Qb3 {[%emt 0:01:32]} Qc7 {[%emt 0:03:10]} 10. Rb1 {[%emt 0:04:37]} Nd7 {[%emt 0:01:45]} 11. d4 {[%emt 0:04:05]} b5 {[%emt 0:04:22]} 12. c4 {[%emt 0:07:48]} bxc4 {[%emt 0:01:58]} 13. Qxc4 {[%emt 0:00:23]} Nb6 {[%emt 0:00:34]} 14. Qc2 {[%emt 0:01:29]} Bb7 {[%emt 0:03:14]} 15. dxe5 {[%emt 0:08:25]} Bxe5 {[%emt 0:00:22]} 16. Nxe5 {[%emt 0:00:40]} Qxe5 {[%emt 0:00:15]} 17. Bb2 {[%emt 0:01:48]} Qe6 {[%emt 0:03:55]} 18. Ba3 {[%emt 0:02:39]} Rfe8 {[%emt 0:00:57]} 19. e3 {[%emt 0:06:21]} Rab8 {[%emt 0:04:48]} 20. Bc5 {[%emt 0:07:41]} Ba8 {[%emt 0:06:46]} 21. a4 {[%emt 0:03:56]} Rb7 {[%emt 0:06:27]} 22. Bd4 {[%emt 0:06:24]} Rc8 {[%emt 0:06:15]} 23. Rfc1 {[%emt 0:04:24]} Nd5 {[%emt 0:02:23]} 24. Rxb7 {[%emt 0:02:43]} Bxb7 {[%emt 0:00:16]} 25. Bxa7 {[%emt 0:00:40]} Ra8 {[%emt 0:02:38]} 26. Bc5 {[%emt 0:00:40]} Qg4 {[%emt 0:03:47]} 27. Ra1 {[%emt 0:04:35]} Ba6 {[%emt 0:06:31]} 28. a5 {[%emt 0:02:18]} Qc4 {[%emt 0:01:42]} 29. Qxc4 {[%emt 0:01:44]} Bxc4 {[%emt 0:00:07]} 30. Bf1 {[%emt 0:00:10]} Bb5 {[%emt 0:01:26]} 31. Bxb5 {[%emt 0:01:59]} cxb5 {[%emt 0:00:09]} 32. a6 {[%emt 0:01:26]} Nc7 {[%emt 0:01:17]} 33. a7 {[%emt 0:00:32]} Ne6 {[%emt 0:00:49]} 34. Bd6 {[%emt 0:00:25]} Nd8 {[%emt 0:00:33]} 35. Bb8 {[%emt 0:00:21]} Kf8 {[%emt 0:01:33]} 36. Rb1 {[%emt 0:00:35]} Ke7 {[%emt 0:02:03]} 37. Rxb5 {[%emt 0:00:16]} Nc6 {[%emt 0:00:28]} 38. f4 {[%emt 0:01:03]} Kd7 {[%emt 0:00:38]} 39. Rb7+ {[%emt 0:00:25]} Ke6 {[%emt 0:00:37]} 40. Rb6 {[%emt 0:00:46]} Kd7 {[%emt 0:00:10]} 41. Rxc6 {[%emt 0:00:24]} Kxc6 {[%emt 0:00:10]} 42. Kf2 {[%emt 0:00:06]} Kb7 {[%emt 0:00:34]} 43. Kf3 {[%emt 0:00:39]} Rxb8 {[%emt 0:00:13]} 44. axb8=Q+ {[%emt 0:00:08]} Kxb8 {[%emt 0:00:03]} 45. Ke4 {[%emt 0:00:49]} Kc7 {[%emt 0:00:25]} 46. Ke5 {[%emt 0:00:38]} Kd7 {[%emt 0:00:28]} 47. g4 {[%emt 0:00:17]} Ke7 {[%emt 0:00:19]} 48. g5 {[%emt 0:01:16]} Kd7 {[%emt 0:07:45]} 49. h4 {[%emt 0:01:41]} Ke7 {[%emt 0:00:21]} 50. h5 {[%emt 0:00:29]} g6 {[%emt 0:02:02]} 51. h6 {[%emt 0:01:48]} Ke8 {[%emt 0:00:20]} 52. Kf6 {[%emt 0:00:22]} Kf8 {[%emt 0:00:11]} 53. e4 {[%emt 0:01:31]} Kg8 {[%emt 0:00:10]} 54. f5 {[%emt 0:02:57]} gxf5 {[%emt 0:03:52]} 55. Kxf5 {[%emt 0:01:58]} Kf8 {[%emt 0:01:51]} 56. Kf6 {[%emt 0:00:16]} Kg8 {[%emt 0:00:12]} 57. Ke7 {[%emt 0:01:10]} Kh8 {[%emt 0:00:10]} 58. g6 {[%emt 0:00:51]} fxg6 {[%emt 0:01:26]} 59. Kf7 {[%emt 0:00:14]} g5 {[%emt 0:00:26]} 60. e5 {[%emt 0:00:06]} g4 {[%emt 0:00:11]} 61. e6 {[%emt 0:00:07]} g3 {[%emt 0:00:16]} 62. e7 {[%emt 0:00:04]} g2 {[%emt 0:00:08]} 63. e8=Q# 1-0

[Event "DMP-III LIGA Senior PK 2020"]
[Site "Bystre"]
[Date "2020.07.09"]
[Round "3.18"]
[White "Wolak, Julia"]
[Black "Kruczek, Aleksandra"]
[Result "1-0"]
[ECO "C65"]
[WhiteElo "1516"]
[BlackElo "1038"]
[Annotator "NA RC"]
[PlyCount "91"]
[EventDate "2020.07.05"]
[EventType "team-tourn"]
[EventCountry "POL"]
[SourceTitle "playchess.com"]
[Source "ChessBase"]
[SourceQuality "1"]
[TimeControl "5400+30"]

1. e4 {[%emt 0:00:00]} e5 {[%emt 0:00:00]} 2. Nf3 {[%emt 0:00:00]} Nc6 {[%emt 0:00:00]} 3. Bb5 {[%emt 0:00:02]} Nf6 4. O-O Be7 {[%emt 0:02:10]} 5. c3 {[%emt 0:01:15]} a6 {[%emt 0:03:00]} 6. Ba4 {[%emt 0:00:27]} O-O {[%emt 0:01:46]} 7. Re1 {[%emt 0:00:38]} d5 {[%emt 0:03:51]} 8. exd5 {[%emt 0:00:18]} Qxd5 {[%emt 0:01:02]} 9. Bxc6 {[%emt 0:02:26]} bxc6 {[%emt 0:04:02]} 10. Rxe5 {[%emt 0:02:50]} Qd6 {[%emt 0:03:57]} 11. h3 {[%emt 0:00:47]} Nd5 {[%emt 0:05:58]} 12. d4 {[%emt 0:01:37]} Qg6 {[%emt 0:05:52]} 13. Kh1 {[%emt 0:00:59]} Bd6 {[%emt 0:02:45]} 14. Re1 {[%emt 0:02:00]} Nf4 {[%emt 0:05:59]} 15. Bxf4 {[%emt 0:07:12]} Bxf4 {[%emt 0:00:33]} 16. Ne5 {[%emt 0:02:26]} Qh6 {[%emt 0:02:29]} 17. Ng4 Qh4 {[%emt 0:07:28]} 18. Qf3 {[%emt 0:07:49]} h5 {[%emt 0:05:44]} 19. Qxf4 {[%emt 0:01:20]} hxg4 {[%emt 0:04:22]} 20. Re3 {[%emt 0:07:53]} Bb7 {[%emt 0:05:35]} 21. Kg1 {[%emt 0:09:15]} Rae8 {[%emt 0:05:52]} 22. Nd2 {[%emt 0:03:33]} Rxe3 {[%emt 0:06:35]} 23. fxe3 {[%emt 0:00:54]} Re8 {[%emt 0:05:51]} 24. e4 {[%emt 0:03:46]} Re6 {[%emt 0:02:59]} 25. Rf1 {[%emt 0:01:58]} Rf6 {[%emt 0:02:23]} 26. Qxg4 {[%emt 0:02:00]} Qh6 {[%emt 0:02:35]} 27. Rxf6 {[%emt 0:00:35]} Qxf6 {[%emt 0:00:16]} 28. Nf3 {[%emt 0:00:54]} Qh6 {[%emt 0:01:15]} 29. Qg5 {[%emt 0:00:14]} Qe6 {[%emt 0:01:25]} 30. Qd8+ {[%emt 0:00:08]} Kh7 {[%emt 0:00:33]} 31. Ng5+ {[%emt 0:00:05]} Kh6 {[%emt 0:00:25]} 32. Nxe6 {[%emt 0:00:05]} fxe6 {[%emt 0:00:19]} 33. Qxc7 {[%emt 0:00:08]} c5 {[%emt 0:00:45]} 34. Qxb7 {[%emt 0:00:06]} c4 {[%emt 0:00:17]} 35. d5 {[%emt 0:00:13]} exd5 {[%emt 0:00:16]} 36. exd5 {[%emt 0:00:05]} g5 {[%emt 0:00:15]} 37. Qxa6+ {[%emt 0:00:32]} Kh5 {[%emt 0:01:07]} 38. d6 {[%emt 0:00:30]} g4 {[%emt 0:00:28]} 39. hxg4+ {[%emt 0:00:12]} Kxg4 {[%emt 0:00:07]} 40. Qxc4+ {[%emt 0:00:09]} Kf5 {[%emt 0:00:13]} 41. d7 {[%emt 0:00:07]} Kg6 {[%emt 0:00:34]} 42. d8=Q {[%emt 0:00:16]} Kf5 {[%emt 0:00:20]} 43. Qdd5+ {[%emt 0:00:08]} Kg6 {[%emt 0:00:56]} 44. Qcc6+ {[%emt 0:00:06]} Kg7 {[%emt 0:00:15]} 45. Qdd7+ {[%emt 0:00:05]} Kf8 {[%emt 0:00:44]} 46. Qcc8# 1-0

[Event "DMP-III LIGA Senior PK 2020"]
[Site "Bystre"]
[Date "2020.07.09"]
[Round "3.19"]
[White "Zgoda, Damian"]
[Black "Lach, Dariusz"]
[Result "1-0"]
[ECO "A46"]
[WhiteElo "1672"]
[BlackElo "1748"]
[Annotator "NA RC"]
[PlyCount "91"]
[EventDate "2020.07.05"]
[EventType "team-tourn"]
[EventCountry "POL"]
[SourceTitle "playchess.com"]
[Source "ChessBase"]
[SourceQuality "1"]
[TimeControl "5400+30"]

1. d4 {[%emt 0:00:00]} Nf6 {[%emt 0:00:35]} 2. Bg5 {[%emt 0:00:00]} e6 {[%emt 0:01:06]} 3. Nf3 {[%emt 0:00:13]} Be7 {[%emt 0:00:09]} 4. e3 {[%emt 0:00:16]} O-O {[%emt 0:00:23]} 5. Nbd2 {[%emt 0:00:29]} d5 {[%emt 0:01:31]} 6. Bd3 {[%emt 0:00:15]} Nbd7 {[%emt 0:00:38]} 7. c3 {[%emt 0:00:25]} h6 {[%emt 0:00:14]} 8. Bh4 {[%emt 0:00:58]} b6 {[%emt 0:01:08]} 9. O-O {[%emt 0:01:36]} a5 {[%emt 0:00:23]} 10. Ne5 {[%emt 0:02:46]} Nxe5 {[%emt 0:02:33]} 11. dxe5 {[%emt 0:00:50]} Nd7 {[%emt 0:00:19]} 12. Bxe7 {[%emt 0:01:50]} Qxe7 {[%emt 0:00:08]} 13. f4 {[%emt 0:01:44]} f6 {[%emt 0:03:50]} 14. Qh5 {[%emt 0:07:55]} f5 {[%emt 0:01:22]} 15. g4 {[%emt 0:08:45]} Ba6 {[%emt 0:00:34]} 16. Bxa6 {[%emt 0:02:37]} Rxa6 {[%emt 0:00:02]} 17. Nf3 {[%emt 0:01:33]} Qf7 {[%emt 0:02:24]} 18. Qxf7+ {[%emt 0:03:06]} Rxf7 {[%emt 0:00:16]} 19. gxf5 {[%emt 0:00:15]} Rxf5 {[%emt 0:00:55]} 20. Nd4 {[%emt 0:00:29]} Rf7 {[%emt 0:02:01]} 21. Nxe6 {[%emt 0:00:51]} Nf8 {[%emt 0:00:30]} 22. Nd8 {[%emt 0:02:05]} Rd7 {[%emt 0:01:58]} 23. Nc6 {[%emt 0:00:28]} Ra8 {[%emt 0:00:12]} 24. Rad1 {[%emt 0:01:18]} g6 {[%emt 0:01:46]} 25. Rxd5 {[%emt 0:00:24]} Rxd5 {[%emt 0:00:44]} 26. Ne7+ {[%emt 0:00:09]} Kg7 {[%emt 0:01:26]} 27. Nxd5 {[%emt 0:00:10]} Rd8 {[%emt 0:01:00]} 28. Nxc7 {[%emt 0:07:12]} Rd7 {[%emt 0:00:39]} 29. Ne8+ {[%emt 0:00:17]} Kf7 {[%emt 0:00:20]} 30. Nd6+ {[%emt 0:00:16]} Ke7 {[%emt 0:00:18]} 31. Rd1 {[%emt 0:01:23]} Rc7 {[%emt 0:00:31]} 32. Kf2 {[%emt 0:00:55]} Ne6 {[%emt 0:00:22]} 33. Nb5 {[%emt 0:01:24]} Rd7 {[%emt 0:00:35]} 34. Rxd7+ {[%emt 0:00:14]} Kxd7 {[%emt 0:00:08]} 35. Kf3 {[%emt 0:02:36]} Nc5 {[%emt 0:02:41]} 36. e4 {[%emt 0:05:41]} a4 {[%emt 0:00:57]} 37. Ke3 {[%emt 0:00:33]} Ne6 {[%emt 0:01:37]} 38. f5 {[%emt 0:00:58]} Nf8 {[%emt 0:00:35]} 39. Kd4 {[%emt 0:02:58]} g5 {[%emt 0:01:05]} 40. e6+ {[%emt 0:00:21]} Nxe6+ {[%emt 0:01:27]} 41. fxe6+ {[%emt 0:00:13]} Kxe6 {[%emt 0:00:04]} 42. Nc7+ {[%emt 0:00:11]} Kd7 {[%emt 0:00:19]} 43. Nd5 {[%emt 0:00:05]} b5 {[%emt 0:00:15]} 44. e5 {[%emt 0:00:16]} Kc6 {[%emt 0:00:18]} 45. Nf6 {[%emt 0:00:15]} Kc7 {[%emt 0:00:19]} 46. Kd5 {[%emt 0:00:07]} 1-0

[Event "DMP-III LIGA Senior PK 2020"]
[Site "Bystre"]
[Date "2020.07.09"]
[Round "3.22"]
[White "Lach, Tomasz"]
[Black "Mikula, Michal"]
[Result "0-1"]
[ECO "A45"]
[WhiteElo "1833"]
[BlackElo "1858"]
[Annotator "NA RC"]
[PlyCount "112"]
[EventDate "2020.07.05"]
[EventType "team-tourn"]
[EventCountry "POL"]
[SourceTitle "playchess.com"]
[Source "ChessBase"]
[SourceQuality "1"]
[TimeControl "5400+30"]

{[%evp 40,101,18,11,32767,-16,13,-40,-24,-20,-18,-16,-18,-15,32767,-30,-36,-120,-118,-120,-114,32767,-130,32767,-112,-109,-108,-116,-123,-137,-129,-138,-126,32767,32767,32767,32767,-133,-5,32767,-127,-137,32767,-148,-119,32767,0,-177,-33,-113,0,-630,-704,-530,-904,-947,-1215,-1505,-29973,-1350,-29976,-29987,-4928,-29981]} 1. d4 Nf6 2. Nc3 c5 3. d5 d6 4. e4 a6 5. a4 e5 6. Bg5 {A43: Schmid Benoni.} Be7 7. Bxf6 Bxf6 8. Be2 Nd7 {[#]} 9. Bg4 $146 ({Predecessor:} 9. Nf3 Nf8 10. O-O Ng6 11. g3 Bh3 12. Re1 h5 13. Bf1 Qd7 14. Bxh3 Qxh3 15. Qe2 {½-½ (28) Felz Krueger,G (1764)-Caramia,J (2146) Villa Ballester 2012}) 9... Nf8 10. Bxc8 Rxc8 11. Nge2 Ng6 12. O-O O-O 13. a5 Qd7 14. Ng3 Nf4 15. Nh5 Nxh5 16. Qxh5 g6 17. Qe2 Bd8 18. Qd2 Qg4 19. f3 Qh5 20. Ra3 Bg5 21. Qe2 Rc7 22. Raa1 f5 23. Rad1 (23. exf5 $11 gxf5 24. f4 Qxe2 25. Nxe2) 23... Qh6 24. g3 Rcf7 25. Kg2 Bd8 26. Ra1 Qg5 27. Qd3 f4 28. g4 (28. Qd2 $15) 28... h5 29. h3 Rh7 30. Rh1 hxg4 31. hxg4 Rxh1 32. Rxh1 Bxa5 33. Ne2 Rf7 34. c3 Rh7 35. Qb1 Rh4 36. Qa1 Rxh1 37. Kxh1 Qd8 38. Kg2 b5 (38... Bb6 $17 39. Qh1 Qg5) 39. Qh1 Kg7 40. Qa1 c4 41. Ng1 Qb6 42. Qe1 Qd8 (42... g5 $17 43. Qa1 Kf6) 43. Qa1 $1 {[#]} Qc7 (43... Kh7 $1 $19 44. Ne2 Kg8) 44. Qe1 (44. Nh3 $11 {keeps the balance.}) 44... g5 (44... Bb6 $17 45. Qh4 Qd8) 45. Ne2 $2 (45. Nh3 $15 Kg6 46. Qa1) 45... Bb6 46. Ng1 Qc5 47. Nh3 Kg6 48. Qa1 a5 49. Qd1 Qe3 50. Qc2 Kf6 $19 (50... Qe1 $142 51. Nf2 Be3 52. Nh3 b4 53. cxb4 Qg3+ 54. Kf1 Qxh3+ 55. Qg2 Qxg2+ 56. Kxg2 axb4 57. Kf1 c3 58. bxc3 bxc3 59. Ke1 c2 60. Ke2 c1=Q 61. Kd3 Kh7 62. Ke2 Qd2+ 63. Kf1 Qf2#) 51. Qd1 b4 52. Qc2 Qe1 53. Qa4 Qe2+ 54. Kh1 Qxf3+ 55. Kh2 Qg3+ 56. Kh1 Qxh3# 0-1

[Event "DMP-III LIGA Senior PK 2020"]
[Site "Bystre"]
[Date "2020.07.09"]
[Round "3.23"]
[White "Sygulski, Piotr"]
[Black "Lach, Mateusz"]
[Result "0-1"]
[ECO "C18"]
[WhiteElo "1652"]
[BlackElo "1674"]
[Annotator "NA RC"]
[PlyCount "78"]
[EventDate "2020.07.05"]
[EventType "team-tourn"]
[EventCountry "POL"]
[SourceTitle "playchess.com"]
[Source "ChessBase"]
[SourceQuality "1"]
[TimeControl "5400+30"]

1. e4 {[%emt 0:00:00]} e6 {[%emt 0:00:00]} 2. d4 {[%emt 0:00:00]} d5 {[%emt 0:00:00]} 3. Nc3 {[%emt 0:00:23]} Bb4 {[%emt 0:00:00]} 4. e5 {[%emt 0:00:07]} c5 {[%emt 0:00:00]} 5. a3 {[%emt 0:00:01]} Bxc3+ {[%emt 0:00:08]} 6. bxc3 {[%emt 0:00:02]} Qa5 {[%emt 0:00:24]} 7. Bd2 {[%emt 0:00:43]} c4 {[%emt 0:00:26]} 8. Qg4 {[%emt 0:00:52]} Ne7 {[%emt 0:02:18]} 9. Qxg7 {[%emt 0:01:51]} Rg8 {[%emt 0:00:07]} 10. Qxh7 {[%emt 0:00:04]} Nbc6 {[%emt 0:00:37]} 11. h4 {[%emt 0:08:11]} Bd7 {[%emt 0:01:22]} 12. Qh5 {[%emt 0:01:20]} Qa4 {[%emt 0:01:03]} 13. Qd1 {[%emt 0:00:27]} O-O-O {[%emt 0:03:40]} 14. Nf3 {[%emt 0:01:46]} Rdf8 {[%emt 0:01:52]} 15. Ng5 {[%emt 0:02:08]} Rh8 {[%emt 0:00:58]} 16. g3 {[%emt 0:03:48]} f6 {[%emt 0:00:36]} 17. exf6 {[%emt 0:00:49]} Rxf6 {[%emt 0:00:08]} 18. Bh3 {[%emt 0:00:44]} Nf5 {[%emt 0:03:38]} 19. Bxf5 {[%emt 0:01:55]} exf5 {[%emt 0:02:26]} 20. f4 {[%emt 0:03:41]} Ne7 {[%emt 0:06:04]} 21. Qb1 {[%emt 0:03:17]} Rb6 {[%emt 0:05:26]} 22. Qc1 {[%emt 0:00:55]} Be8 {[%emt 0:00:49]} 23. Kf2 {[%emt 0:00:26]} Ng8 {[%emt 0:01:57]} 24. Re1 {[%emt 0:03:17]} Nf6 {[%emt 0:00:36]} 25. Re5 {[%emt 0:05:26]} Ng4+ {[%emt 0:00:43]} 26. Kg1 {[%emt 0:00:32]} Nxe5 {[%emt 0:02:33]} 27. dxe5 {[%emt 0:00:22]} Qa5 {[%emt 0:03:51]} 28. Qe1 {[%emt 0:01:18]} d4 {[%emt 0:01:06]} 29. cxd4 {[%emt 0:01:53]} Qd5 {[%emt 0:00:10]} 30. Qf2 {[%emt 0:00:56]} Bc6 {[%emt 0:00:31]} 31. Kh2 {[%emt 0:00:14]} Rb2 {[%emt 0:01:46]} 32. Bb4 {[%emt 0:00:21]} a5 {[%emt 0:00:24]} 33. Bd6 {[%emt 0:00:48]} b5 {[%emt 0:00:31]} 34. Kh3 {[%emt 0:09:38]} b4 {[%emt 0:00:47]} 35. axb4 {[%emt 0:00:35]} axb4 {[%emt 0:00:10]} 36. g4 {[%emt 0:03:51]} b3 {[%emt 0:00:40]} 37. Rc1 {[%emt 0:01:16]} Rxc2 {[%emt 0:00:42]} 38. Rxc2 {[%emt 0:01:07]} bxc2 {[%emt 0:04:10]} 39. Qxc2 {[%emt 0:00:25]} Qh1+ {[%emt 0:00:30]} 0-1

[Event "DMP-III LIGA Senior PK 2020"]
[Site "Bystre"]
[Date "2020.07.09"]
[Round "3.24"]
[White "Wladyka, Angelika"]
[Black "Zgoda, Aleksandra"]
[Result "1/2-1/2"]
[ECO "B22"]
[WhiteElo "1601"]
[BlackElo "1203"]
[Annotator "NA RC"]
[PlyCount "109"]
[EventDate "2020.07.05"]
[EventType "team-tourn"]
[EventCountry "POL"]
[SourceTitle "playchess.com"]
[Source "ChessBase"]
[SourceQuality "1"]
[TimeControl "5400+30"]

1. e4 {[%emt 0:00:00]} c5 {[%emt 0:00:00]} 2. c3 {[%emt 0:00:00]} e6 {[%emt 0:00:15]} 3. d4 {[%emt 0:00:00]} cxd4 {[%emt 0:00:15]} 4. cxd4 {[%emt 0:00:00]} Nf6 {[%emt 0:01:01]} 5. Bd3 {[%emt 0:02:27]} Nc6 {[%emt 0:01:26]} 6. Nf3 {[%emt 0:01:02]} Nb4 {[%emt 0:02:11]} 7. Nc3 {[%emt 0:01:35]} Nxd3+ {[%emt 0:00:56]} 8. Qxd3 {[%emt 0:00:08]} d6 {[%emt 0:01:59]} 9. Bg5 {[%emt 0:02:38]} Be7 {[%emt 0:01:24]} 10. O-O {[%emt 0:00:44]} a6 {[%emt 0:01:30]} 11. Rfd1 {[%emt 0:15:00]} b5 {[%emt 0:04:41]} 12. Rac1 {[%emt 0:04:51]} Bb7 {[%emt 0:04:06]} 13. e5 {[%emt 0:16:46]} Nd5 {[%emt 0:07:55]} 14. Bxe7 {[%emt 0:03:40]} Qxe7 {[%emt 0:01:26]} 15. exd6 {[%emt 0:02:41]} Qxd6 {[%emt 0:01:32]} 16. Ne4 {[%emt 0:01:29]} Qe7 {[%emt 0:02:24]} 17. Nc5 {[%emt 0:15:10]} O-O {[%emt 0:08:08]} 18. Nxb7 {[%emt 0:04:12]} Qxb7 {[%emt 0:01:57]} 19. Ng5 {[%emt 0:01:42]} g6 {[%emt 0:01:57]} 20. Qh3 {[%emt 0:04:04]} h5 {[%emt 0:04:11]} 21. Qf3 {[%emt 0:02:40]} Rac8 {[%emt 0:05:28]} 22. Ne4 {[%emt 0:01:18]} Qe7 {[%emt 0:02:39]} 23. Rxc8 {[%emt 0:03:47]} Rxc8 {[%emt 0:02:09]} 24. Nc5 {[%emt 0:00:28]} a5 {[%emt 0:05:43]} 25. Re1 {[%emt 0:01:00]} Qf6 {[%emt 0:03:12]} 26. Qxf6 {[%emt 0:07:05]} Nxf6 {[%emt 0:00:26]} 27. f3 {[%emt 0:01:26]} Kf8 {[%emt 0:00:52]} 28. Kf2 {[%emt 0:00:13]} Nd5 {[%emt 0:02:04]} 29. a3 {[%emt 0:01:56]} Ke7 {[%emt 0:01:25]} 30. g3 {[%emt 0:00:41]} a4 {[%emt 0:01:55]} 31. f4 {[%emt 0:00:54]} Kd6 {[%emt 0:02:15]} 32. Rc1 {[%emt 0:01:25]} Nb6 {[%emt 0:01:32]} 33. Ke2 {[%emt 0:03:02]} Kd5 {[%emt 0:00:23]} 34. Kd3 {[%emt 0:00:22]} Nc4 {[%emt 0:01:43]} 35. Rc2 {[%emt 0:00:08]} Rg8 {[%emt 0:01:24]} 36. h4 {[%emt 0:01:04]} Nd6 {[%emt 0:02:35]} 37. Nd7 {[%emt 0:00:38]} Ne8 {[%emt 0:02:56]} 38. Rc5+ {[%emt 0:01:15]} Kd6 {[%emt 0:00:32]} 39. Ne5 {[%emt 0:00:32]} f6 {[%emt 0:03:45]} 40. Nf3 {[%emt 0:00:54]} Nc7 {[%emt 0:01:06]} 41. Ng1 {[%emt 0:00:30]} Rb8 {[%emt 0:01:06]} 42. Ne2 {[%emt 0:00:20]} b4 {[%emt 0:01:06]} 43. axb4 {[%emt 0:00:34]} Rxb4 {[%emt 0:00:10]} 44. Rc2 {[%emt 0:00:40]} Nd5 {[%emt 0:01:44]} 45. Kd2 {[%emt 0:00:40]} e5 {[%emt 0:02:40]} 46. dxe5+ {[%emt 0:00:06]} fxe5 {[%emt 0:00:14]} 47. fxe5+ {[%emt 0:00:05]} Kxe5 {[%emt 0:00:15]} 48. Nc1 {[%emt 0:01:01]} Rg4 {[%emt 0:01:46]} 49. Ne2 {[%emt 0:00:33]} Nf6 {[%emt 0:02:45]} 50. Ke3 {[%emt 0:00:31]} g5 {[%emt 0:02:01]} 51. hxg5 {[%emt 0:00:26]} Rxg5 {[%emt 0:00:58]} 52. Rc4 {[%emt 0:00:43]} Rg4 {[%emt 0:01:11]} 53. Rc8 {[%emt 0:00:44]} Rb4 {[%emt 0:01:23]} 54. Rc2 {[%emt 0:00:03]} Rb3+ {[%emt 0:01:01]} 55. Nc3 {[%emt 0:00:59]} 1/2-1/2